bitfinex-derivatives/quotes_BTCF0:USTF0_20250919
["timestamp","ask_amount","ask_price","bid_price","bid_amount"]
[1758285431943,0.8911268,116270.0,116260.0,0.64793528]
[1758285432847,0.1073268,116270.0,116260.0,0.64793528]
[1758285433047,0.8921268,116270.0,116260.0,0.64793528]
[1758285434452,0.8931268,116270.0,116260.0,0.64893528]
[1758285437358,0.78576,116270.0,116260.0,0.91272862]
[1758285437859,0.8717212,116270.0,116260.0,0.91272862]
[1758285438060,0.8930812,116270.0,116260.0,0.91272862]
[1758285438454,0.8717212,116270.0,116260.0,0.91272862]
[1758285439161,0.0879612,116270.0,116260.0,0.91272862]
[1758285439362,0.1093212,116270.0,116260.0,0.91272862]
[1758285439557,0.1093212,116270.0,116260.0,0.64893528]
[1758285439756,0.1093212,116270.0,116260.0,0.91272862]
[1758285440557,0.1093212,116270.0,116260.0,0.64893528]
[1758285440763,0.1093212,116270.0,116260.0,0.6689139]
[1758285441756,0.1093212,116270.0,116260.0,0.93270724]
[1758285442562,0.1093212,116270.0,116260.0,0.6689139]
[1758285445459,0.1093212,116270.0,116260.0,0.93270724]
[1758285445961,0.0879612,116270.0,116260.0,0.93270724]
[1758285446363,0.1092912,116270.0,116260.0,0.93270724]
[1758285446568,0.1092912,116270.0,116260.0,0.6689139]
[1758285446753,0.1092912,116270.0,116260.0,0.14132722]
[1758285446960,0.1092912,116270.0,116260.0,0.6689139]
[1758285453672,0.002,116270.0,116260.0,0.93270724]
[1758285453866,0.002,116270.0,116260.0,1.96630724]
[1758285454179,0.002,116270.0,116260.0,2.11841724]
[1758285455074,0.002,116270.0,116260.0,1.33481724]
[1758285455272,0.002,116270.0,116260.0,2.11841724]
[1758285456068,0.002,116270.0,116260.0,1.33481724]
[1758285456274,0.002,116270.0,116260.0,2.11837724]
[1758285457776,0.002,116270.0,116260.0,1.85409316]
[1758285459272,0.002,116270.0,116260.0,1.60409316]
[1758285460180,0.002,116270.0,116260.0,0.82053316]
[1758285460479,0.002,116270.0,116260.0,1.60405316]
[1758285461076,0.085944,116300.0,116290.0,0.38383457]
[1758285461077,0.107274,116300.0,116290.0,0.38383457]
[1758285461280,0.107274,116300.0,116290.0,0.40378383]
[1758285461483,0.107274,116300.0,116290.0,0.31783723]
[1758285461983,0.107274,116300.0,116290.0,0.40378383]
[1758285462280,0.1208966,116290.0,116280.0,0.0217]
[1758285462479,0.120904,116280.0,116270.0,0.04177259]
[1758285462784,0.120904,116280.0,116270.0,0.30522056]
[1758285464174,0.120904,116280.0,116270.0,0.3736958]
[1758285465083,0.120904,116280.0,116270.0,0.3746958]
[1758285465281,0.120904,116280.0,116270.0,0.3786958]
[1758285466681,0.120904,116280.0,116270.0,0.3914358]
[1758285470684,0.107284,116280.0,116270.0,0.3914358]
[1758285471079,0.107284,116280.0,116270.0,0.12788783]
[1758285471279,0.107284,116280.0,116270.0,0.3914358]
[1758285472281,0.107284,116280.0,116270.0,0.4773972]
[1758285472476,0.107284,116280.0,116270.0,0.74094517]
[1758285472676,0.085954,116280.0,116270.0,0.74094517]
[1758285474189,0.107274,116280.0,116270.0,0.74094517]
[1758285474390,0.085954,116280.0,116270.0,0.74094517]
[1758285477388,0.107274,116280.0,116270.0,0.74094517]
[1758285477591,0.107274,116280.0,116270.0,0.4773972]
[1758285479386,0.107274,116280.0,116270.0,0.74094517]
[1758285480585,0.085954,116280.0,116270.0,0.74094517]
[1758285481292,0.085954,116280.0,116270.0,0.74057105]
[1758285481594,0.108024,116280.0,116270.0,0.74057105]
[1758285482693,0.108024,116280.0,116270.0,0.47702308]
[1758285482996,0.1718932,116290.0,116280.0,0.03627]
[1758285482997,0.1080166,116290.0,116280.0,0.03627]
[1758285483200,0.1080166,116290.0,116280.0,0.56336594]
[1758285483990,0.1080166,116290.0,116280.0,0.64931994]
[1758285484191,0.1080166,116290.0,116280.0,0.56336594]
[1758285484391,0.1080166,116290.0,116280.0,0.56436594]
[1758285484899,0.1080166,116290.0,116280.0,0.57542158]
[1758285485396,0.1080166,116290.0,116280.0,0.66137558]
[1758285486393,0.1100166,116290.0,116280.0,0.66237558]
[1758285491804,0.0960415,116290.0,116280.0,0.66237558]
[1758285492206,0.0739715,116290.0,116280.0,0.66237558]
[1758285492500,0.0960415,116290.0,116280.0,0.66237558]
[1758285492705,0.0960415,116290.0,116280.0,0.04932564]
[1758285492897,0.0960415,116290.0,116280.0,0.57642158]
[1758285493203,0.0960415,116290.0,116280.0,0.66237548]
[1758285501808,0.08206647,116290.0,116280.0,0.66237548]
[1758285508608,0.08206647,116290.0,116280.0,0.13527954]
[1758285508810,0.08206647,116290.0,116280.0,0.66237548]
[1758285511212,0.08206647,116290.0,116280.0,0.13527954]
[1758285511513,0.08206647,116290.0,116280.0,0.66237548]
[1758285511813,0.06809155,116290.0,116280.0,0.66237548]
[1758285514914,0.06809155,116290.0,116280.0,0.68254805]
[1758285517736,0.06809155,116290.0,116280.0,0.68253935]
[1758285518634,0.06809155,116290.0,116280.0,0.68227865]
[1758285521835,0.02407,116290.0,116280.0,0.68227865]
[1758285522130,0.02407,116290.0,116280.0,0.68256217]
[1758285522936,0.1100238,116290.0,116280.0,0.68256217]
[1758285525635,0.1100238,116290.0,116280.0,0.06922456]
[1758285525831,0.1100238,116290.0,116280.0,0.5963118]
[1758285527939,0.1100238,116290.0,116280.0,0.6822663]
[1758285529627,0.38661742,116290.0,116280.0,0.05609456]
[1758285529832,0.63661742,116290.0,116280.0,0.04503892]
[1758285530033,0.63661742,116290.0,116280.0,0.30873736]
[1758285534042,0.62264162,116290.0,116280.0,0.30873736]
[1758285534445,1.40576162,116290.0,116280.0,0.30873736]
[1758285536036,0.359098,116290.0,116280.0,0.30873736]
[1758285536232,1.40576162,116290.0,116280.0,0.30873736]
[1758285537342,0.359098,116290.0,116280.0,0.58533098]
[1758285537542,1.40576162,116290.0,116280.0,0.58533098]
[1758285539849,0.62264162,116290.0,116280.0,0.58533098]
[1758285540052,1.142178,116290.0,116280.0,0.58533098]
[1758285540242,0.62264162,116290.0,116280.0,0.57228098]
[1758285541048,1.40572162,116290.0,116280.0,0.57228098]
[1758285541850,1.40572162,116290.0,116280.0,0.04519374]
[1758285542056,0.62264162,116290.0,116280.0,0.57228098]
[1758285542552,1.40572162,116290.0,116280.0,0.57228098]
[1758285543151,0.62264162,116290.0,116280.0,0.57228098]
[1758285543748,1.40572162,116290.0,116280.0,0.57228098]
[1758285544051,0.62264162,116290.0,116280.0,0.57228098]
[1758285544252,1.40572162,116290.0,116280.0,0.57228098]
[1758285545853,1.40572162,116290.0,116280.0,0.04519374]
[1758285546054,1.40572162,116290.0,116280.0,0.30873736]
[1758285546355,1.40572162,116290.0,116280.0,0.57228098]
[1758285549042,0.359098,116290.0,116280.0,0.57228098]
[1758285549246,1.40568162,116290.0,116280.0,0.57228098]
[1758285550449,1.3917058,116290.0,116280.0,0.57228098]
[1758285550652,1.4132458,116290.0,116280.0,0.58590098]
[1758285553260,0.6302058,116290.0,116280.0,0.58590098]
[1758285553458,1.4132058,116290.0,116280.0,0.58590098]
[1758285554155,0.6302058,116290.0,116280.0,0.58590098]
[1758285554951,1.4132058,116290.0,116280.0,0.05881374]
[1758285555152,1.4132058,116290.0,116280.0,0.58590098]
[1758285555354,1.13661218,116290.0,116280.0,0.58590098]
[1758285555554,0.35361218,116290.0,116280.0,0.58590098]
[1758285555756,1.13661218,116290.0,116280.0,0.58590098]
[1758285556060,0.35361218,116290.0,116280.0,0.58590098]
[1758285556556,0.88661218,116290.0,116280.0,1.1853988]
[1758285556756,0.08207218,116290.0,116280.0,1.1853988]
[1758285558264,0.10361218,116290.0,116280.0,0.83590098]
[1758285559254,0.10361218,116290.0,116280.0,0.58590098]
[1758285563065,0.08963705,116290.0,116280.0,0.58590098]
[1758285567168,0.08963705,116290.0,116280.0,0.002]
[1758285567169,0.87365429,116290.0,116280.0,0.002]
[1758285569970,0.61011067,116290.0,116280.0,0.002]
[1758285571171,0.87365429,116290.0,116280.0,0.002]
[1758285573770,0.34656705,116290.0,116280.0,0.55045724]
[1758285573982,1.39299067,116290.0,116280.0,0.26554362]
[1758285574284,1.39979067,116290.0,116280.0,0.26554362]
[1758285574778,1.13624705,116290.0,116280.0,0.28691362]
[1758285574967,1.39979067,116290.0,116280.0,0.28691362]
[1758285575276,0.61011067,116290.0,116280.0,0.28691362]
[1758285575677,1.39987067,116290.0,116280.0,0.28691362]
[1758285575878,0.61011067,116290.0,116280.0,0.28691362]
[1758285576274,1.39983067,116290.0,116280.0,0.28691362]
[1758285576670,0.61011067,116290.0,116280.0,0.28691362]
[1758285576975,1.39971067,116290.0,116280.0,0.28691362]
[1758285577773,0.61011067,116290.0,116280.0,0.28691362]
[1758285577975,1.39959067,116290.0,116280.0,0.28691362]
[1758285578175,0.61011067,116290.0,116280.0,0.28691362]
[1758285578371,0.08963705,116290.0,116280.0,0.56359724]
[1758285578577,0.87903705,116290.0,116280.0,0.81359724]
[1758285579278,0.87903705,116290.0,116280.0,0.56359724]
[1758285579669,0.08963705,116290.0,116280.0,0.56359724]
[1758285579875,0.87903705,116290.0,116280.0,0.30008037]
[1758285584880,0.87921705,116290.0,116280.0,0.89960474]
[1758285585872,0.86524213,116290.0,116280.0,0.89960474]
[1758285586080,0.86524213,116290.0,116280.0,0.63603437]
[1758285586476,0.86524213,116290.0,116280.0,0.55008037]
[1758285590079,0.86524213,116290.0,116280.0,0.81365074]
[1758285591485,0.86524213,116290.0,116280.0,0.55008037]
[1758285592388,0.86524213,116290.0,116280.0,0.63603437]
[1758285594786,0.86524213,116290.0,116280.0,0.55008037]
[1758285595888,0.85126721,116290.0,116280.0,0.55008037]
[1758285596690,0.85126721,116290.0,116280.0,0.63603437]
[1758285597591,0.04014721,116290.0,116280.0,0.64960474]
[1758285597780,0.85598721,116290.0,116280.0,0.64960474]
[1758285598289,0.85598721,116290.0,116280.0,0.122464]
[1758285598489,0.85598721,116290.0,116280.0,0.64960474]
[1758285605895,0.81584,116290.0,116280.0,0.64960474]
[1758285607102,0.9017938,116290.0,116280.0,0.64960474]
[1758285612200,0.1089538,116290.0,116280.0,0.64960474]
[1758285612394,0.8995938,116290.0,116280.0,0.64960474]
[1758285616498,0.88561901,116290.0,116280.0,0.64960474]
[1758285617295,0.88561901,116290.0,116280.0,0.80369991]
[1758285619604,0.88561901,116290.0,116280.0,0.82367872]
[1758285620404,0.88561901,116290.0,116280.0,0.66958355]
[1758285620595,0.09497901,116290.0,116280.0,0.66958355]
[1758285620908,0.88473901,116290.0,116280.0,0.66958355]
[1758285623004,0.88473901,116290.0,116280.0,0.6694465]
[1758285626098,0.8987438,116290.0,116280.0,0.6701865]
[1758285626507,0.88476912,116290.0,116280.0,0.6701865]
[1758285626806,0.86173912,116290.0,116280.0,0.6701865]
[1758285627506,0.88476912,116290.0,116280.0,0.6701865]
[1758285628209,0.88376912,116290.0,116280.0,0.6701865]
[1758285628410,0.09500912,116290.0,116280.0,0.6701865]
[1758285628609,0.88368912,116290.0,116280.0,0.6701865]
[1758285629613,0.86065912,116290.0,116280.0,0.6701865]
[1758285629806,0.108974,116300.0,116290.0,0.03525]
[1758285630110,0.897614,116300.0,116290.0,0.29882037]
[1758285630997,0.898614,116300.0,116290.0,0.29882037]
[1758285631507,0.898614,116300.0,116290.0,0.30082037]
[1758285635714,0.109974,116300.0,116290.0,0.38676737]
[1758285636012,0.897774,116300.0,116290.0,0.38676737]
[1758285636712,0.8837998,116300.0,116290.0,0.03725]
[1758285636903,0.8837998,116300.0,116290.0,0.30082037]
[1758285639611,0.0959998,116300.0,116290.0,0.30082037]
[1758285639814,0.8835598,116300.0,116290.0,0.30079177]
[1758285644013,0.8835598,116300.0,116290.0,0.03725]
[1758285644214,0.8835598,116300.0,116290.0,0.30079177]
[1758285645614,0.8828798,116300.0,116290.0,0.30079177]
[1758285646006,0.0959998,116300.0,116290.0,0.30079177]
[1758285646212,0.8827198,116300.0,116290.0,0.30079177]
[1758285649006,0.8827198,116300.0,116290.0,0.56433354]
[1758285649007,0.8824398,116300.0,116290.0,0.56433354]
[1758285649609,0.8824398,116300.0,116290.0,0.30079177]
[1758285649916,0.8824398,116300.0,116290.0,0.38673877]
[1758285650817,0.8824398,116300.0,116290.0,0.30079177]
[1758285651014,0.8824398,116300.0,116290.0,0.56433354]
[1758285651412,0.8824398,116300.0,116290.0,0.03725]
[1758285651707,0.8824398,116300.0,116290.0,0.30079177]
[1758285653316,0.8824398,116300.0,116290.0,0.03725]
[1758285653618,0.8824398,116300.0,116290.0,0.30079177]
[1758285655017,0.8824398,116300.0,116290.0,0.32091647]
[1758285656514,0.86846566,116300.0,116290.0,0.32091647]
[1758285657618,0.86846566,116300.0,116290.0,0.0573747]
[1758285657820,0.86846566,116300.0,116290.0,0.32091647]
[1758285658618,0.86846566,116300.0,116290.0,0.32109912]
[1758285662124,0.08202566,116300.0,116290.0,0.32109912]
[1758285662424,0.86738566,116300.0,116290.0,0.32109912]
[1758285664119,0.08202566,116300.0,116290.0,0.32109912]
[1758285664329,0.86718566,116300.0,116290.0,0.32109912]
[1758285666527,0.85321151,116300.0,116290.0,0.32109912]
[1758285666826,0.85321151,116300.0,116290.0,0.05755735]
[1758285667127,0.85321151,116300.0,116290.0,0.32109912]
[1758285668029,0.85321151,116300.0,116290.0,0.32121084]
[1758285668720,0.85321151,116300.0,116290.0,0.05766907]
[1758285668922,0.85321151,116300.0,116290.0,0.32121084]
[1758285669320,1.11675328,116300.0,116290.0,0.05766907]
[1758285669521,1.12567328,116300.0,116290.0,0.04436907]
[1758285669828,1.12567328,116300.0,116290.0,0.28596084]
[1758285670121,1.12567328,116300.0,116290.0,0.30850084]
[1758285670623,1.12567328,116300.0,116290.0,0.02241907]
[1758285670624,1.63921505,116300.0,116290.0,0.02241907]
[1758285670825,1.90275682,116300.0,116290.0,0.02241907]
[1758285671431,1.63921505,116300.0,116290.0,0.02241907]
[1758285671627,1.63921505,116300.0,116290.0,0.002]
[1758285674425,0.32697151,116300.0,116290.0,0.002]
[1758285674626,0.85405505,116300.0,116290.0,0.002]
[1758285674831,1.63921505,116300.0,116290.0,0.26554177]
[1758285675024,1.63921505,116300.0,116290.0,0.002]
[1758285675933,1.11213151,116300.0,116290.0,0.002]
[1758285676134,1.63921505,116300.0,116290.0,0.002]
[1758285676435,0.85405505,116300.0,116290.0,0.002]
[1758285676732,1.63905505,116300.0,116290.0,0.002]
[1758285679533,1.63897505,116300.0,116290.0,0.002]
[1758285682134,0.85405505,116300.0,116290.0,0.002]
[1758285682336,1.63901505,116300.0,116290.0,0.002]
[1758285682634,1.65673178,116300.0,116290.0,0.002]
[1758285685637,0.87177178,116300.0,116290.0,0.002]
[1758285685835,1.63865505,116300.0,116290.0,0.002]
[1758285686032,1.65596949,116300.0,116290.0,0.002]
[1758285688141,0.87136949,116300.0,116290.0,0.002]
[1758285688544,1.65592949,116300.0,116290.0,0.002]
[1758285688848,0.87136949,116300.0,116290.0,0.002]
[1758285689344,1.65592949,116300.0,116290.0,0.002]
[1758285690740,0.87136949,116300.0,116290.0,0.002]
[1758285690939,1.65592949,116300.0,116290.0,0.002]
[1758285692544,0.87136949,116300.0,116290.0,0.002]
[1758285692750,1.65592949,116300.0,116290.0,0.002]
[1758285692938,0.87136949,116300.0,116290.0,0.002]
[1758285693645,1.65592949,116300.0,116290.0,0.002]
[1758285694948,0.87136949,116300.0,116290.0,0.002]
[1758285695239,1.65592949,116300.0,116290.0,0.002]
[1758285695645,0.87136949,116300.0,116290.0,0.002]
[1758285695846,1.65592949,116300.0,116290.0,0.002]
[1758285697143,0.87136949,116300.0,116290.0,0.002]
[1758285697346,1.65592949,116300.0,116290.0,0.002]
[1758285699349,1.40592949,116300.0,116290.0,0.002]
[1758285699549,0.62136949,116300.0,116290.0,0.002]
[1758285699750,1.40588949,116300.0,116290.0,0.002]
[1758285700144,0.62136949,116300.0,116290.0,0.002]
[1758285700336,1.40588949,116300.0,116290.0,0.002]
[1758285701244,1.38857505,116300.0,116290.0,0.002]
[1758285701548,0.60405505,116300.0,116290.0,0.002]
[1758285701749,1.12513652,116300.0,116290.0,0.002]
[1758285702849,0.34061652,116300.0,116290.0,0.002]
[1758285703250,1.12513652,116300.0,116290.0,0.002]
[1758285704254,0.35832653,116300.0,116290.0,0.002]
[1758285704551,1.14284653,116300.0,116290.0,0.002]
[1758285704752,1.12513652,116300.0,116290.0,0.002]
[1758285705142,1.14284589,116300.0,116290.0,0.002]
[1758285706052,0.35832589,116300.0,116290.0,0.002]
[1758285706253,1.14284589,116300.0,116290.0,0.002]
[1758285706454,0.87920088,116300.0,116290.0,0.002]
[1758285706656,1.14284589,116300.0,116290.0,0.002]
[1758285707655,1.12513652,116300.0,116290.0,0.002]
[1758285708655,1.14285436,116300.0,116290.0,0.002]
[1758285708855,0.87920935,116300.0,116290.0,0.002]
[1758285709355,1.14285436,116300.0,116290.0,0.002]
[1758285715362,1.12513652,116300.0,116290.0,0.002]
[1758285715660,1.14263961,116300.0,116290.0,0.002]
[1758285717747,0.8789546,116300.0,116290.0,0.55166501]
[1758285717953,0.8700346,116300.0,116290.0,0.55166501]
[1758285718251,0.8700346,116300.0,116290.0,0.28802]
[1758285718960,0.87010196,116300.0,116290.0,0.28802]
[1758285720662,0.87010196,116300.0,116290.0,0.55166501]
[1758285720852,0.86975374,116300.0,116290.0,0.55166501]
[1758285721363,0.08527374,116300.0,116290.0,0.55166501]
[1758285721563,0.08527374,116300.0,116290.0,0.30166501]
[1758285721754,0.86971374,116300.0,116290.0,0.30166501]
[1758285722564,0.86971374,116300.0,116290.0,0.03802]
[1758285722863,0.86971374,116300.0,116290.0,0.02463]
[1758285723457,0.86971374,116300.0,116290.0,0.28827501]
[1758285723860,0.86971374,116300.0,116290.0,0.002]
[1758285724059,1.13335875,116300.0,116290.0,0.002]
[1758285728665,1.1333525,116300.0,116290.0,0.002]
[1758285729056,0.86970749,116300.0,116290.0,0.002]
[1758285729261,1.1333525,116300.0,116290.0,0.002]
[1758285733363,1.1333525,116300.0,116290.0,0.0244]
[1758285733961,0.3489125,116300.0,116290.0,0.0244]
[1758285734163,1.1333125,116300.0,116290.0,0.03779]
[1758285734662,0.86966749,116300.0,116290.0,0.03779]
[1758285735170,0.86966749,116300.0,116290.0,0.0244]
[1758285735770,1.1333125,116300.0,116290.0,0.0244]
[1758285740257,1.11609652,116300.0,116290.0,0.0244]
[1758285740463,1.1336502,116300.0,116290.0,0.0244]
[1758285740663,0.87000519,116300.0,116290.0,0.0244]
[1758285740864,1.1336502,116300.0,116290.0,0.0244]
[1758285743771,1.11609652,116300.0,116290.0,0.0244]
[1758285744073,1.13378516,116300.0,116290.0,0.0244]
[1758285744575,1.17570915,116300.0,116290.0,0.0244]
[1758285744769,1.17562915,116300.0,116290.0,0.0244]
[1758285744969,1.17562915,116300.0,116290.0,0.28804501]
[1758285745169,0.91198414,116300.0,116290.0,0.28804501]
[1758285745371,0.91198414,116300.0,116290.0,0.30170501]
[1758285746268,1.17562915,116300.0,116290.0,0.002]
[1758285751373,1.17559913,116300.0,116290.0,0.002]
[1758285751574,1.15059913,116300.0,116290.0,0.002]
[1758285751780,1.15654913,116300.0,116290.0,0.002]
[1758285756885,1.15642913,116300.0,116290.0,0.03812]
[1758285758081,1.15642913,116300.0,116290.0,0.01566]
[1758285761790,1.15642248,116300.0,116290.0,0.27926834]
[1758285766094,1.42003082,116300.0,116290.0,0.27926834]
[1758285769296,1.15642248,116300.0,116290.0,0.27926834]
[1758285769994,1.156926,116300.0,116290.0,0.27926834]
[1758285771195,1.42053434,116300.0,116290.0,0.26560834]
[1758285773488,1.42065459,116300.0,116290.0,0.26560834]
[1758285779097,1.42065459,116300.0,116290.0,0.002]
[1758285779998,0.63645459,116300.0,116290.0,0.002]
[1758285780198,1.42041459,116300.0,116290.0,0.002]
[1758285782910,0.63645459,116300.0,116290.0,0.002]
[1758285783314,1.42037459,116300.0,116290.0,0.002]
[1758285784910,0.63645459,116300.0,116290.0,0.002]
[1758285785213,1.42037459,116300.0,116290.0,0.002]
[1758285785807,0.63645459,116300.0,116290.0,0.002]
[1758285786007,1.42033459,116300.0,116290.0,0.002]
[1758285786212,0.63645459,116300.0,116290.0,0.002]
[1758285786413,1.42033459,116300.0,116290.0,0.002]
[1758285786613,1.42033459,116300.0,116290.0,0.03578]
[1758285787016,1.42033459,116300.0,116290.0,0.01467]
[1758285787313,1.42033459,116300.0,116290.0,0.002]
[1758285788218,0.63645459,116300.0,116290.0,0.002]
[1758285788516,1.42033459,116300.0,116290.0,0.002]
[1758285789215,0.89311791,116300.0,116290.0,0.26560834]
[1758285789420,1.42033459,116300.0,116290.0,0.29938834]
[1758285789621,1.42033459,116300.0,116290.0,0.27827834]
[1758285790922,1.42029459,116300.0,116290.0,0.27827834]
[1758285791219,1.42029459,116300.0,116290.0,0.002]
[1758285791419,1.42029459,116300.0,116290.0,0.26560834]
[1758285791628,1.42029459,116300.0,116290.0,0.002]
[1758285793719,1.42029459,116300.0,116290.0,0.26560834]
[1758285795024,0.63648259,116300.0,116290.0,0.26562234]
[1758285795225,1.42028259,116300.0,116290.0,0.26562234]
[1758285797132,1.40294018,116300.0,116290.0,0.26562234]
[1758285797631,1.42010748,116300.0,116290.0,0.26562234]
[1758285799136,0.8928628,116300.0,116290.0,0.26562234]
[1758285799344,1.42010748,116300.0,116290.0,0.26562234]
[1758285800740,1.42061072,116300.0,116290.0,0.26562234]
[1758285801036,1.40294018,116300.0,116290.0,0.26562234]
[1758285801739,1.40294018,116300.0,116290.0,0.002]
[1758285801940,1.42044487,116300.0,116290.0,0.002]
[1758285811835,0.63664487,116300.0,116290.0,0.002]
[1758285812328,1.42028487,116300.0,116290.0,0.002]
[1758285816037,0.89304019,116300.0,116290.0,0.002]
[1758285816242,1.42020487,116300.0,116290.0,0.03745]
[1758285816942,1.42020487,116300.0,116290.0,0.01483]
[1758285817744,0.63664487,116300.0,116290.0,0.01483]
[1758285817931,1.42020487,116300.0,116290.0,0.01483]
[1758285822343,1.42020487,116300.0,116290.0,0.002]
[1758285823847,1.15659449,116300.0,116290.0,0.002]
[1758285829053,1.15647449,116300.0,116290.0,0.03745]
[1758285829455,1.15647449,116300.0,116290.0,0.01483]
[1758285830851,0.89284019,116300.0,116290.0,0.01483]
[1758285831050,1.15647449,116300.0,116290.0,0.01483]
[1758285831254,1.15639449,116300.0,116290.0,0.01483]
[1758285835955,0.89276019,116300.0,116290.0,0.01483]
[1758285836151,1.15639449,116300.0,116290.0,0.002]
[1758285838258,0.89276019,116300.0,116290.0,0.002]
[1758285838457,1.15639449,116300.0,116290.0,0.002]
[1758285845459,1.15639449,116300.0,116290.0,0.03685]
[1758285848264,1.15639449,116300.0,116290.0,0.01472]
[1758285848469,1.15639449,116300.0,116290.0,0.002]
[1758285852876,0.89276019,116300.0,116290.0,0.002]
[1758285853173,1.15639449,116300.0,116290.0,0.002]
[1758285853771,0.89276019,116300.0,116290.0,0.002]
[1758285854074,1.15639449,116300.0,116290.0,0.002]
[1758285859369,0.37303449,116300.0,116290.0,0.002]
[1758285859568,1.15599449,116300.0,116290.0,0.002]
[1758285863487,1.15595449,116300.0,116290.0,0.002]
[1758285864792,0.37303449,116300.0,116290.0,0.002]
[1758285864985,1.15591449,116300.0,116290.0,0.002]
[1758285866388,0.37303449,116300.0,116290.0,0.002]
[1758285866579,1.15587449,116300.0,116290.0,0.002]
[1758285868396,1.15569511,116300.0,116290.0,0.002]
[1758285868799,0.37285511,116300.0,116290.0,0.002]
[1758285869186,1.15565511,116300.0,116290.0,0.002]
[1758285870095,0.37285511,116300.0,116290.0,0.002]
[1758285870285,1.15565511,116300.0,116290.0,0.002]
[1758285870595,0.37285511,116300.0,116290.0,0.002]
[1758285870785,1.15565511,116300.0,116290.0,0.002]
[1758285871989,1.15551101,116300.0,116290.0,0.002]
[1758285883906,1.41917725,116300.0,116290.0,0.002]
[1758285891201,0.63637725,116300.0,116290.0,0.002]
[1758285891400,1.41885725,116300.0,116290.0,0.002]
[1758285891805,0.63637725,116300.0,116290.0,0.002]
[1758285892107,1.41885725,116300.0,116290.0,0.002]
[1758285904105,0.0918965,116290.0,116280.0,0.0001]
[1758285904306,0.0919039,116280.0,116270.0,1e-07]
[1758285904510,1.41889985,116280.0,116270.0,1e-07]
[1758285906610,1.42807126,116280.0,116270.0,1e-07]
[1758285907011,0.64579126,116280.0,116270.0,1e-07]
[1758285907206,1.42807126,116280.0,116270.0,1e-07]
[1758285908311,1.42807126,116280.0,116270.0,0.0010001]
[1758285909604,1.42776793,116280.0,116270.0,0.0010001]
[1758285911112,1.42776793,116280.0,116270.0,0.0030001]
[1758285912615,1.6914182,116280.0,116270.0,0.0030001]
[1758285913117,1.67430612,116280.0,116270.0,0.0030001]
[1758285914523,1.69159321,116280.0,116270.0,0.0030001]
[1758285916025,0.0919187,116260.0,116250.0,0.10318395]
[1758285918617,1.41965826,116260.0,116250.0,0.10318395]
[1758285919024,1.42265826,116260.0,116250.0,0.10318395]
[1758285919318,1.42265826,116260.0,116250.0,0.10302395]
[1758285920318,0.64041826,116260.0,116250.0,0.10302395]
[1758285920521,1.42261826,116260.0,116250.0,0.10302395]
[1758285922015,0.64041826,116260.0,116250.0,0.10302395]
[1758285922215,1.42261826,116260.0,116250.0,0.10302395]
[1758285925222,0.64041826,116260.0,116250.0,0.10302395]
[1758285925423,1.42257826,116260.0,116250.0,0.10302395]
[1758285925623,0.11311772,116260.0,116250.0,0.10302395]
[1758285925824,1.42253826,116260.0,116250.0,0.10302395]
[1758285927226,0.89523772,116260.0,116250.0,0.10302395]
[1758285927431,1.42253826,116260.0,116250.0,0.10302395]
[1758285928025,0.89523772,116260.0,116250.0,0.10302395]
[1758285928226,1.42253826,116260.0,116250.0,0.10302395]
[1758285928625,0.89523772,116260.0,116250.0,0.10302395]
[1758285928826,0.64041826,116260.0,116250.0,0.10302395]
[1758285929123,1.42253826,116260.0,116250.0,0.10302395]
[1758285929315,0.64041826,116260.0,116250.0,0.10302395]
[1758285929520,1.42249826,116260.0,116250.0,0.10302395]
[1758285929721,0.11311772,116260.0,116250.0,0.10302395]
[1758285929921,0.89519772,116260.0,116250.0,0.10302395]
[1758285930220,0.64041826,116260.0,116250.0,0.10302395]
[1758285930420,1.42249826,116260.0,116250.0,0.10302395]
[1758285939050,1.42245826,116260.0,116250.0,0.10302395]
[1758285939253,0.89511772,116260.0,116250.0,0.10302395]
[1758285939452,0.64041826,116260.0,116250.0,0.10302395]
[1758285939654,1.42241826,116260.0,116250.0,0.10302395]
[1758285942656,0.0921861,116250.0,116240.0,0.01353]
[1758285942858,0.0921934,116240.0,116230.0,0.21014206]
[1758285943054,1.40145394,116240.0,116230.0,0.21004206]
[1758285943259,1.40145394,116240.0,116230.0,0.31959716]
[1758285943454,1.40145394,116240.0,116230.0,0.05594689]
[1758285944758,1.40145394,116240.0,116230.0,0.06094689]
[1758285945349,1.40145394,116240.0,116230.0,0.05894689]
[1758285945544,0.8741534,116240.0,116230.0,0.05894689]
[1758285945852,1.13802927,116240.0,116230.0,0.05894689]
[1758285946250,1.13802927,116240.0,116230.0,0.12678527]
[1758285949051,1.13802927,116240.0,116230.0,0.12674527]
[1758285960860,0.8741534,116240.0,116230.0,0.12674527]
[1758285961266,1.13802927,116240.0,116230.0,0.12674527]
[1758285962366,1.14710461,116240.0,116230.0,0.12674527]
[1758285962961,1.14710461,116240.0,116230.0,0.10647838]
[1758285964670,1.14710461,116240.0,116230.0,0.08422838]
[1758285964671,1.39710461,116240.0,116230.0,0.08422838]
[1758285966070,1.39710461,116240.0,116230.0,0.003]
[1758285966071,1.40102461,116240.0,116230.0,0.003]
[1758285967474,0.0922609,116230.0,116220.0,0.0001]
[1758285967672,0.0922683,116220.0,116210.0,0.03638]
[1758285967872,0.0922683,116220.0,116210.0,0.03628]
[1758285967873,0.62002004,116220.0,116210.0,0.03628]
[1758285968069,0.0922683,116220.0,116210.0,0.03628]
[1758285968268,1.40182004,116220.0,116210.0,0.03628]
[1758285969368,0.62002004,116220.0,116210.0,0.03628]
[1758285969573,1.13794417,116220.0,116210.0,0.03628]
[1758285969773,0.35614417,116220.0,116210.0,0.03628]
[1758285970071,1.40182004,116220.0,116210.0,0.03628]
[1758285970273,1.13794417,116220.0,116210.0,0.03628]
[1758285970471,1.13894417,116220.0,116210.0,0.04028]
[1758285970675,1.40282004,116220.0,116210.0,0.04728]
[1758285971073,0.62102004,116220.0,116210.0,0.04728]
[1758285971277,1.40286004,116220.0,116210.0,0.04728]
[1758285971461,1.13898417,116220.0,116210.0,0.04728]
[1758285971661,0.35714417,116220.0,116210.0,0.04728]
[1758285971862,1.13894417,116220.0,116210.0,0.04728]
[1758285972074,1.13894417,116220.0,116210.0,0.11629288]
[1758285972974,0.35714417,116220.0,116210.0,0.11649288]
[1758285973274,1.40286004,116220.0,116210.0,0.11649288]
[1758285973473,1.13898417,116220.0,116210.0,0.11649288]
[1758285975175,1.13898417,116220.0,116210.0,0.04748]
[1758285976180,1.40286004,116220.0,116210.0,0.04748]